bitfinex/quotes_BTCUSD_20241101
["timestamp","ask_amount","ask_price","bid_price","bid_amount"]
[1730470685835,0.14423772,71350.0,71349.0,0.000825]
[1730470686034,0.14423772,71355.0,71349.0,0.000825]
[1730470686237,0.14015,71352.0,71349.0,0.000825]
[1730470686473,0.14423772,71355.0,71349.0,0.000825]
[1730470686474,0.280292,71354.0,71349.0,0.000825]
[1730470686617,0.28439172,71350.0,71349.0,0.000825]
[1730470687821,0.14423772,71350.0,71349.0,0.000825]
[1730470688167,0.280237,71368.0,71349.0,0.000825]
[1730470688374,0.21067564,71362.0,71350.0,0.13845525]
[1730470688603,0.21067564,71362.0,71361.0,0.140132]
[1730470688821,0.21067564,71370.0,71361.0,0.140132]
[1730470689043,0.21067564,71370.0,71351.0,0.12509803]
[1730470689247,0.14423772,71359.0,71351.0,0.02509803]
[1730470689396,0.14423772,71359.0,71349.0,0.140979]
[1730470689602,0.14423772,71364.0,71350.0,0.21067564]
[1730470689802,0.21067564,71362.0,71349.0,0.100825]
[1730470690253,0.21067564,71362.0,71354.0,0.140145]
[1730470691194,0.21067564,71362.0,71353.0,0.140147]
[1730470691477,0.21067564,71362.0,71349.0,0.100825]
[1730470691696,0.21067564,71362.0,71352.0,0.140149]
[1730470691905,0.21067564,71362.0,71351.0,0.280304]
[1730470692055,0.21067564,71362.0,71352.0,0.140148]
[1730470692658,0.21067564,71362.0,71352.0,0.2803]
[1730470692865,0.21067564,71362.0,71353.0,0.140147]
[1730470693067,0.21067564,71362.0,71351.0,0.280304]
[1730470693266,0.21067564,71362.0,71352.0,0.140149]
[1730470693667,0.21067564,71362.0,71353.0,0.140147]
[1730470693868,0.21067564,71362.0,71352.0,0.140149]
[1730470694068,0.21067564,71377.0,71354.0,0.140146]
[1730470694290,0.21067564,71369.0,71355.0,0.13845525]
[1730470694823,0.21067564,71369.0,71368.0,0.140118]
[1730470695210,0.21067564,71377.0,71368.0,0.140118]
[1730470695971,0.21067564,71377.0,71367.0,0.14012]
[1730470696344,0.000825,71378.0,71366.0,0.280242]
[1730470696462,0.21067564,71376.0,71366.0,0.140122]
[1730470696686,0.21067564,71376.0,71360.0,0.280269]
[1730470696936,0.21067564,71376.0,71360.0,0.1]
[1730470697085,0.21067564,71376.0,71364.0,0.03]
[1730470697292,0.14423772,71373.0,71364.0,0.03]
[1730470697852,0.140118,71368.0,71364.0,0.03]
[1730470698070,0.140116,71370.0,71364.0,0.03]
[1730470698228,0.140118,71369.0,71364.0,0.03]
[1730470698417,0.140124,71366.0,71364.0,0.03]
[1730470698623,0.140124,71365.0,71364.0,0.03]
[1730470699383,0.14423772,71367.0,71355.0,0.00165]
[1730470699756,0.140131,71362.0,71355.0,0.00165]
[1730470700309,0.280245,71366.0,71355.0,0.00165]
[1730470700492,0.35080164,71365.0,71355.0,0.00165]
[1730470701319,0.21567564,71365.0,71355.0,0.00165]
[1730470701553,0.28437972,71356.0,71355.0,0.00165]
[1730470702993,0.140142,71356.0,71355.0,0.00165]
[1730470703636,0.140136,71359.0,71355.0,0.00165]
[1730470703836,0.280253,71364.0,71355.0,0.00165]
[1730470704019,0.21067564,71363.0,71355.0,0.00165]
[1730470704452,0.140133,71361.0,71355.0,0.00165]
[1730470705048,0.006,71356.0,71355.0,0.00265]
[1730470705484,0.280263,71362.0,71355.0,0.00165]
[1730470705698,0.140132,71361.0,71355.0,0.00165]
[1730470706526,0.420398,71361.0,71355.0,0.00165]
[1730470706728,0.280269,71360.0,71355.0,0.00165]
[1730470707085,0.140137,71359.0,71355.0,0.00165]
[1730470707295,0.28437972,71356.0,71355.0,0.00165]
[1730470707465,0.140142,71356.0,71355.0,0.00165]
[1730470709209,0.146142,71356.0,71355.0,0.00265]
[1730470709612,0.006,71356.0,71355.0,0.00265]
[1730470710310,0.007,71356.0,71355.0,0.00265]
[1730470710931,0.007,71356.0,71355.0,0.142794]
[1730470711140,0.007,71356.0,71355.0,0.48123172]
[1730470711342,0.007,71356.0,71355.0,0.336994]
[1730470711926,0.001,71356.0,71355.0,0.71868697]
[1730470712141,0.000825,71378.0,71356.0,0.1]
[1730470712350,0.000825,71378.0,71375.0,0.140105]
[1730470712566,0.000825,71378.0,71375.0,0.25634927]
[1730470712783,0.000825,71378.0,71375.0,0.35634927]
[1730470712991,0.000825,71376.0,71375.0,0.35634927]
[1730470714525,0.000825,71376.0,71375.0,0.59949797]
[1730470715566,1e-06,71381.0,71380.0,0.1]
[1730470715735,1e-06,71381.0,71380.0,0.62128797]
[1730470717277,1e-06,71381.0,71380.0,0.62228797]
[1730470718253,1e-06,71381.0,71380.0,0.59928797]
[1730470718694,0.21067564,71421.0,71393.0,0.357969]
[1730470718914,0.21067564,71421.0,71393.0,0.57722425]
[1730470719583,0.14423772,71415.0,71393.0,0.57722425]
[1730470719798,0.14503172,71420.0,71393.0,0.57722425]
[1730470720024,0.000794,71420.0,71393.0,0.57722425]
[1730470720240,0.000794,71420.0,71393.0,0.60022425]
[1730470720471,0.0514881,71394.0,71393.0,0.81089989]
[1730470720693,0.21067564,71412.0,71411.0,0.140034]
[1730470720917,0.21067564,71412.0,71411.0,0.27848925]
[1730470721319,0.000794,71420.0,71419.0,0.140018]
[1730470721529,0.000794,71420.0,71419.0,0.27847325]
[1730470722859,0.000794,71420.0,71419.0,0.60077325]
[1730470723080,0.000793,71424.0,71421.0,0.240014]
[1730470723293,0.000793,71424.0,71421.0,0.37846925]
[1730470724368,0.000793,71424.0,71421.0,0.37946925]
[1730470726037,0.000793,71424.0,71421.0,0.38338433]
[1730470728351,0.000793,71424.0,71421.0,0.40638433]
[1730470729136,0.000793,71424.0,71422.0,0.263012]
[1730470729349,0.000793,71424.0,71422.0,0.40146725]
[1730470730097,0.48525332,71430.0,71429.0,0.262999]
[1730470730297,0.48525332,71430.0,71429.0,0.54569197]
[1730470730880,0.48525332,71430.0,71429.0,0.58139867]
[1730470731085,0.48525332,71430.0,71429.0,0.54569197]
[1730470731344,0.48525332,71430.0,71429.0,0.52269197]
[1730470731556,0.0188556,71438.0,71437.0,0.139983]
[1730470731746,0.0188556,71438.0,71437.0,0.62847597]
[1730470732058,0.0188556,71438.0,71437.0,0.66418267]
[1730470733045,0.02,71444.0,71443.0,0.40720872]
[1730470733246,0.02,71444.0,71443.0,0.69711849]
[1730470734022,0.02,71444.0,71443.0,0.65926397]
[1730470734502,0.02,71444.0,71443.0,0.69933525]
[1730470735340,0.02,71444.0,71443.0,0.66026397]
[1730470735479,0.02,71444.0,71443.0,0.70033525]
[1730470735691,0.000793,71447.0,71444.0,0.123]
[1730470735868,0.000793,71447.0,71446.0,0.40142025]
[1730470736635,0.000793,71447.0,71446.0,0.37842025]
[1730470736780,0.000793,71447.0,71446.0,0.42059133]
[1730470737592,0.000793,71447.0,71446.0,0.42441462]
[1730470738097,0.000793,71447.0,71446.0,0.44741462]
[1730470738287,0.000793,71447.0,71446.0,0.38224354]
[1730470738837,0.000793,71447.0,71446.0,0.44471096]
[1730470739001,0.000793,71447.0,71446.0,0.40524354]
[1730470739605,0.000793,71447.0,71446.0,0.90624354]
[1730470740035,0.000793,71447.0,71446.0,0.90524354]
[1730470740434,0.000793,71447.0,71446.0,0.94571096]
[1730470740689,0.000793,71447.0,71446.0,0.90624354]
[1730470740886,0.000793,71447.0,71446.0,0.94571096]
[1730470741794,0.000793,71447.0,71446.0,1.02441096]
[1730470742192,0.000793,71447.0,71446.0,0.98494354]
[1730470742823,0.000793,71447.0,71446.0,1.02441096]
[1730470743441,0.000793,71447.0,71446.0,0.88324354]
[1730470743819,0.000793,71447.0,71446.0,0.92271096]
[1730470744138,0.000793,71447.0,71446.0,0.88324354]
[1730470744720,0.000793,71447.0,71446.0,0.88224354]
[1730470745370,0.000793,71447.0,71446.0,0.88324354]
[1730470745748,0.000793,71447.0,71446.0,0.88224354]
[1730470745957,0.000793,71447.0,71446.0,0.88324354]
[1730470746575,0.000793,71447.0,71446.0,0.88224354]
[1730470747307,0.000793,71447.0,71446.0,0.64378829]
[1730470747876,0.000793,71447.0,71446.0,0.78324354]
[1730470748485,0.000793,71447.0,71446.0,0.90524354]
[1730470748712,0.000793,71447.0,71446.0,0.48744354]
[1730470748926,0.000793,71447.0,71446.0,0.38324354]
[1730470749303,0.000793,71447.0,71446.0,0.38224354]
[1730470749759,0.000793,71447.0,71446.0,0.14478829]
[1730470749976,0.000793,71447.0,71446.0,0.140965]
[1730470750191,0.000793,71447.0,71446.0,0.001]
[1730470750698,0.140756,71447.0,71446.0,0.001]
[1730470751135,0.140756,71447.0,71445.0,0.03]
[1730470751136,0.139965,71446.0,71445.0,0.03]
[1730470751787,0.250265,71446.0,71445.0,0.03]
[1730470752618,0.250265,71446.0,71444.0,0.001646]
[1730470752619,0.219067,71445.0,71444.0,0.001646]
[1730470752944,0.35752225,71445.0,71444.0,0.001646]
[1730470753144,0.219067,71445.0,71444.0,0.001646]
[1730470754211,0.000793,71447.0,71444.0,0.001646]
[1730470754423,0.002,71445.0,71444.0,0.001646]
[1730470754842,0.141967,71445.0,71444.0,0.001646]
[1730470755272,0.139967,71445.0,71444.0,0.001646]
[1730470755495,0.27842225,71445.0,71444.0,0.001646]
[1730470755710,0.140758,71447.0,71444.0,0.001646]
[1730470755941,0.000793,71447.0,71444.0,0.002646]
[1730470756976,0.000793,71447.0,71444.0,0.282583]
[1730470757174,0.000793,71447.0,71446.0,0.139965]
[1730470757378,0.000793,71447.0,71446.0,0.27842025]
[1730470758842,0.000793,71447.0,71446.0,0.27942025]
[1730470759271,0.000793,71447.0,71446.0,0.27842025]
[1730470760569,0.000793,71447.0,71446.0,0.48909589]
[1730470760795,0.000793,71447.0,71446.0,0.27942025]
[1730470761017,0.000793,71447.0,71446.0,0.36082025]
[1730470761223,0.000793,71447.0,71446.0,0.35982025]
[1730470761650,0.000793,71447.0,71446.0,0.36082025]
[1730470762074,0.000793,71447.0,71446.0,0.35982025]
[1730470762721,0.000793,71447.0,71446.0,0.36082025]
[1730470763370,0.000793,71447.0,71446.0,0.46082025]
[1730470763585,0.000793,71447.0,71446.0,0.81459589]
[1730470763776,0.000793,71447.0,71446.0,0.60392025]
[1730470764080,0.000793,71447.0,71446.0,0.60292025]
[1730470764513,0.000793,71447.0,71446.0,0.60392025]
[1730470765145,0.000793,71447.0,71446.0,0.60292025]
[1730470765360,0.000293,71447.0,71446.0,0.60392025]
[1730470765506,0.000293,71447.0,71446.0,0.58092025]
[1730470765715,0.000293,71447.0,71446.0,0.46082025]
[1730470766312,3.4e-07,71450.0,71449.0,0.1]
[1730470766531,3.4e-07,71453.0,71452.0,0.262954]
[1730470766723,3.4e-07,71453.0,71452.0,0.54844533]
[1730470767095,3.4e-07,71453.0,71452.0,0.54564697]
[1730470767747,3.4e-07,71453.0,71452.0,0.58298152]
[1730470768108,3.4e-07,71453.0,71452.0,0.62754697]
[1730470768489,0.000793,71466.0,71452.0,0.69926861]
[1730470768691,0.000793,71466.0,71465.0,0.54562097]
[1730470768890,0.000793,71466.0,71465.0,0.262928]
[1730470769101,0.000793,71466.0,71465.0,0.239928]
[1730470769781,0.000793,71466.0,71465.0,0.37838325]
[1730470771029,0.000793,71466.0,71465.0,0.27838325]
[1730470771236,0.000793,71466.0,71465.0,0.28326543]
[1730470774074,0.000793,71466.0,71465.0,0.30626543]
[1730470774274,0.000793,71466.0,71465.0,0.50386543]
[1730470774903,0.000793,71466.0,71465.0,0.36166543]
[1730470775476,0.000793,71466.0,71465.0,0.38566543]
[1730470776015,0.000793,71466.0,71465.0,0.36266543]
[1730470776814,0.000793,71466.0,71465.0,0.28226543]
[1730470777167,0.000793,71466.0,71465.0,0.28326543]
[1730470778739,0.000793,71466.0,71465.0,0.28226543]
[1730470779921,0.000793,71466.0,71465.0,0.28326543]
[1730470780556,0.000793,71466.0,71465.0,0.28226543]
[1730470780764,0.000793,71466.0,71465.0,0.28326543]
[1730470781418,0.000793,71466.0,71465.0,0.28226543]
[1730470781630,0.000793,71466.0,71465.0,0.28326543]
[1730470782340,0.000793,71466.0,71465.0,0.42750315]
[1730470782964,0.000793,71466.0,71465.0,0.28326543]
[1730470783166,0.000793,71466.0,71465.0,0.28226543]
[1730470783359,0.000793,71466.0,71465.0,0.28326543]
[1730470783701,0.000793,71466.0,71465.0,0.42750315]
[1730470783943,0.000793,71466.0,71465.0,0.42650315]
[1730470784174,0.000793,71466.0,71465.0,0.28326543]
[1730470786918,0.000793,71466.0,71465.0,0.38103167]
[1730470787513,0.000793,71466.0,71465.0,0.28326543]
[1730470788116,0.000793,71466.0,71465.0,0.49394107]
[1730470788315,0.000793,71466.0,71465.0,0.28326543]
[1730470789795,0.000793,71466.0,71465.0,0.28226543]
[1730470790212,0.000793,71466.0,71465.0,0.28326543]
[1730470790608,0.000793,71466.0,71465.0,0.28226543]
[1730470790965,0.000793,71466.0,71465.0,0.28326543]
[1730470791784,0.000793,71466.0,71465.0,0.001]
[1730470792929,0.140719,71466.0,71465.0,0.001]
[1730470793189,0.139928,71465.0,71464.0,0.03]
[1730470793349,0.23769424,71465.0,71464.0,0.03]
[1730470793888,0.000793,71466.0,71464.0,0.03]
[1730470794114,0.000793,71466.0,71465.0,0.35060364]
[1730470794354,0.000793,71466.0,71465.0,0.001]
[1730470794588,0.09855924,71466.0,71465.0,0.001]
[1730470794814,0.09855924,71466.0,71464.0,0.03]
[1730470795053,0.000793,71466.0,71465.0,0.59185721]
[1730470795281,0.000793,71466.0,71465.0,0.41970333]
[1730470795485,0.000793,71466.0,71465.0,0.37838325]
[1730470796328,0.000793,71466.0,71465.0,0.38225328]
[1730470797224,0.000793,71466.0,71465.0,0.38325328]
[1730470798355,0.000793,71466.0,71465.0,0.42461018]
[1730470799629,0.000793,71466.0,71465.0,0.38325328]
[1730470800383,0.000793,71466.0,71465.0,0.48001952]
[1730470800527,0.000793,71466.0,71465.0,0.48101952]
[1730470800936,0.000793,71466.0,71465.0,0.52240188]
[1730470801137,0.000793,71466.0,71465.0,0.52140188]
[1730470801409,0.000793,71466.0,71465.0,0.52141805]
[1730470801600,0.000793,71466.0,71465.0,0.52241805]
[1730470802019,0.000793,71466.0,71465.0,0.42365181]
[1730470802332,0.000793,71466.0,71465.0,0.38225328]
[1730470802536,0.000793,71466.0,71465.0,0.38325328]
[1730470802956,0.000793,71466.0,71465.0,0.37938325]
[1730470803705,0.000793,71466.0,71465.0,0.37838325]
[1730470804310,0.000793,71466.0,71465.0,0.37938325]
[1730470804682,0.000793,71466.0,71465.0,0.37838325]
[1730470805199,0.000793,71466.0,71465.0,0.37938325]
[1730470805547,0.000793,71466.0,71465.0,0.37838325]
[1730470806711,0.000793,71466.0,71464.0,0.03]
[1730470806974,0.000793,71466.0,71465.0,0.001]
[1730470807166,0.000793,71466.0,71465.0,0.140928]
[1730470807589,0.000793,71466.0,71464.0,0.03]
[1730470807787,0.000793,71466.0,71464.0,0.169929]
[1730470807926,0.000793,71466.0,71465.0,0.001]
[1730470808335,0.000793,71466.0,71464.0,0.03]
[1730470809261,0.000793,71466.0,71465.0,0.001]
[1730470809462,0.000793,71466.0,71465.0,0.140928]
[1730470809671,0.000793,71466.0,71465.0,0.23722149]
[1730470809879,0.000793,71466.0,71465.0,0.55824949]
[1730470810078,0.000793,71466.0,71465.0,0.59957248]
[1730470810377,0.000793,71466.0,71465.0,0.59895486]
[1730470810682,0.000793,71466.0,71465.0,0.55724949]
[1730470811464,0.000793,71466.0,71465.0,0.59796373]
[1730470811678,0.000793,71466.0,71465.0,0.55824949]
[1730470812182,0.000793,71466.0,71465.0,0.61929713]
[1730470812380,0.000793,71466.0,71465.0,0.46048325]
[1730470812799,0.000793,71466.0,71465.0,0.50121942]
[1730470813360,0.000793,71466.0,71465.0,0.42011942]
[1730470817280,0.000793,71466.0,71465.0,0.32011942]
[1730470817639,0.000793,71466.0,71465.0,0.001]
[1730470817954,0.000793,71466.0,71464.0,0.03]
[1730470818156,0.000793,71466.0,71464.0,0.16845525]
[1730470818361,0.000793,71466.0,71465.0,0.140928]
[1730470818759,0.000793,71466.0,71465.0,0.139928]
[1730470819165,0.000793,71466.0,71464.0,0.16945525]
[1730470819369,0.000793,71466.0,71465.0,0.139928]
[1730470820898,0.000793,71466.0,71465.0,0.140928]
[1730470822825,0.000793,71466.0,71465.0,0.49005889]
[1730470823039,0.000793,71466.0,71465.0,0.27938325]
[1730470824226,0.000793,71466.0,71465.0,0.27838325]
[1730470824637,0.000793,71466.0,71465.0,0.27938325]
[1730470825274,0.000793,71466.0,71465.0,0.27838325]
[1730470825955,0.000793,71466.0,71465.0,0.27938325]
[1730470827502,0.000793,71466.0,71465.0,0.31972609]
[1730470827703,0.000793,71466.0,71465.0,0.34048348]
[1730470827914,0.000793,71466.0,71465.0,0.32011052]
[1730470828111,0.000793,71466.0,71465.0,0.51787676]
[1730470828318,0.000793,71466.0,71465.0,0.57959948]
[1730470828636,0.000793,71466.0,71465.0,0.59439925]
[1730470828792,0.000793,71466.0,71465.0,0.59539925]
[1730470829210,0.000793,71466.0,71465.0,0.59439925]
[1730470829838,0.000793,71466.0,71465.0,0.61739925]
[1730470830729,0.000793,71466.0,71465.0,0.61839925]
[1730470831360,0.000793,71466.0,71465.0,0.61739925]
[1730470831757,0.000793,71466.0,71465.0,0.62305708]
[1730470831962,0.000793,71466.0,71465.0,0.54739491]
[1730470832172,0.000793,71466.0,71465.0,0.71439491]
[1730470832332,0.000793,71466.0,71465.0,0.73739491]
[1730470832703,0.000793,71466.0,71465.0,0.85944794]
[1730470833071,0.000793,71466.0,71465.0,0.73739491]
[1730470833477,0.02110823,71477.0,71476.0,0.139907]
[1730470833681,0.02110823,71477.0,71476.0,0.48073497]
[1730470833887,0.02110823,71477.0,71476.0,0.48199305]
[1730470835068,0.02110823,71477.0,71476.0,0.48299305]
[1730470835289,0.02110823,71477.0,71476.0,0.52368537]
[1730470835487,0.02110823,71477.0,71476.0,0.48533379]
[1730470835711,0.02110823,71477.0,71476.0,0.5866851]
[1730470837349,0.02110823,71477.0,71476.0,0.48433379]
[1730470837567,0.02110823,71477.0,71476.0,0.48533379]
[1730470837783,0.02110823,71477.0,71476.0,0.44857156]
[1730470837998,0.02110823,71477.0,71476.0,0.38756755]
[1730470838758,0.02110823,71477.0,71476.0,0.28656755]
[1730470839171,0.02110823,71477.0,71476.0,0.28756755]
[1730470839586,0.02110823,71477.0,71476.0,0.59600943]
[1730470839813,0.02110823,71477.0,71476.0,0.50797604]
[1730470840023,0.02110823,71477.0,71476.0,0.52661447]
[1730470840456,0.02110823,71477.0,71476.0,0.6283235]
[1730470840709,0.02110823,71477.0,71476.0,0.52661447]
[1730470840925,0.02193323,71477.0,71476.0,0.38756755]
[1730470841053,0.02193323,71477.0,71476.0,0.38656755]
[1730470841637,0.02193323,71477.0,71476.0,0.38756755]
[1730470841814,0.02193323,71477.0,71476.0,0.42884724]
[1730470842473,0.02193323,71477.0,71476.0,0.52951123]
[1730470842678,0.02193323,71477.0,71476.0,0.42784724]
[1730470842808,0.02193323,71477.0,71476.0,0.42884724]
[1730470843232,0.00075,71480.0,71479.0,0.239901]
[1730470843404,0.00075,71480.0,71479.0,0.49508141]
[1730470843643,0.00075,71480.0,71479.0,0.50279873]
[1730470843857,0.00075,71480.0,71479.0,0.60438626]
[1730470844084,0.00075,71480.0,71479.0,0.71347437]
[1730470844317,0.00116,71497.0,71493.0,0.423373]
[1730470844556,0.21067564,71507.0,71501.0,0.139858]
[1730470844763,0.000793,71516.0,71501.0,0.139858]
[1730470844764,0.000793,71516.0,71501.0,0.31888287]
[1730470844966,0.000793,71516.0,71501.0,0.27831325]
[1730470845325,0.000793,71516.0,71501.0,0.28595149]
[1730470845541,0.000793,71516.0,71501.0,0.32648611]
[1730470845687,0.000793,71516.0,71501.0,0.42648888]
[1730470845902,0.000793,71516.0,71501.0,0.65939112]
[1730470846099,0.000793,71516.0,71501.0,0.52781548]
[1730470846264,0.000793,71516.0,71501.0,0.50746609]
[1730470846698,0.000793,71516.0,71501.0,0.46696105]
[1730470846898,0.000793,71516.0,71501.0,0.67763669]
[1730470847126,0.000793,71516.0,71501.0,0.46696105]
[1730470847330,0.000793,71516.0,71501.0,0.46796105]
[1730470847895,0.000793,71516.0,71501.0,0.96696105]
[1730470848508,0.000793,71516.0,71501.0,0.88786105]
[1730470849721,0.21067564,71511.0,71501.0,0.78786105]
[1730470849927,0.0756,71513.0,71501.0,0.88562729]
[1730470850462,0.0756,71513.0,71501.0,0.78786105]
[1730470850933,0.0756,71513.0,71501.0,0.5095478]
[1730470850934,0.091,71506.0,71501.0,0.5095478]
[1730470851114,0.09776624,71505.0,71501.0,0.5095478]
[1730470851460,0.083393,71502.0,71501.0,0.5095478]
[1730470852049,0.083393,71502.0,71501.0,0.0095478]
[1730470852923,0.223249,71502.0,71501.0,0.0095478]
[1730470853147,0.139858,71501.0,71500.0,0.95561736]
[1730470853373,0.23762424,71501.0,71500.0,0.95561736]
[1730470853691,0.223249,71502.0,71500.0,0.95561736]
[1730470853910,0.22325,71502.0,71500.0,0.95561736]
[1730470854116,0.139858,71501.0,71500.0,0.95561736]
[1730470856613,0.083393,71502.0,71500.0,0.95561736]
[1730470856964,0.140858,71501.0,71500.0,0.95561736]
[1730470857388,0.000793,71502.0,71500.0,0.95561736]
[1730470857589,0.000793,71519.0,71500.0,0.95561736]
[1730470857590,0.000793,71519.0,71508.0,0.139844]
[1730470857788,0.000793,71519.0,71508.0,0.27829925]
[1730470858541,0.09471172,71518.0,71508.0,0.139844]
[1730470858772,0.000793,71519.0,71508.0,0.139844]
[1730470858773,0.09471172,71514.0,71508.0,0.139844]
[1730470858923,0.09471172,71518.0,71508.0,0.139844]
[1730470859120,0.19365565,71517.0,71508.0,0.14777111]
[1730470860641,0.33348265,71517.0,71508.0,0.00792711]
[1730470860842,0.28484098,71509.0,71508.0,0.00792711]
[1730470860999,0.28484098,71509.0,71480.0,0.21067564]
[1730470861000,0.139858,71501.0,71480.0,0.21067564]
[1730470861204,0.42754663,71501.0,71480.0,0.21067564]
[1730470861427,0.60434663,71501.0,71500.0,0.96073449]
[1730470861624,0.60434663,71501.0,71480.0,0.21067564]
[1730470861625,0.7223,71500.0,71480.0,0.21067564]
[1730470862009,0.139881,71489.0,71480.0,0.21067564]
[1730470862277,0.12623338,71496.0,71480.0,0.35057364]
[1730470862455,0.139873,71493.0,71480.0,0.35057364]
[1730470862634,0.039871,71495.0,71481.0,0.139896]
[1730470862850,0.13987,71495.0,71481.0,0.139896]
[1730470863025,0.139871,71495.0,71480.0,0.49047164]
[1730470863246,0.41817925,71499.0,71481.0,0.279794]
[1730470863481,0.30303338,71501.0,71481.0,0.13845525]
[1730470863676,0.30303338,71501.0,71480.0,0.21067564]
[1730470863677,0.0776,71501.0,71482.0,0.14125301]
[1730470864042,0.20383338,71501.0,71489.0,0.13988]
[1730470864321,0.34369238,71501.0,71486.0,0.139886]
[1730470864646,0.20383338,71501.0,71489.0,0.35055564]
[1730470865041,0.34369238,71501.0,71489.0,0.21067564]
[1730470865237,0.20383338,71501.0,71489.0,0.21067564]
[1730470865656,0.12623338,71501.0,71490.0,0.13845525]
[1730470865822,0.279688,71508.0,71491.0,0.279755]
[1730470866023,0.12623338,71505.0,71493.0,0.139873]
[1730470866305,0.12623338,71505.0,71492.0,0.279751]
[1730470866518,0.12623338,71505.0,71493.0,0.279747]
[1730470866727,0.12623338,71505.0,71494.0,0.13987]
[1730470866946,0.12623338,71505.0,71497.0,0.21067564]
[1730470867149,0.0195896,71509.0,71495.0,0.13845525]
[1730470867318,0.12623338,71506.0,71495.0,0.13845525]
[1730470867565,0.12623338,71506.0,71482.0,0.20763338]
[1730470867566,0.12623338,71498.0,71490.0,0.21067564]
[1730470867714,0.12623338,71505.0,71491.0,0.13845525]
[1730470867715,0.12623338,71494.0,71491.0,0.13845525]
[1730470868081,0.12623338,71494.0,71491.0,0.27833225]
[1730470868283,0.12623338,71498.0,71491.0,0.13845525]
[1730470868512,0.12623338,71498.0,71493.0,0.139873]
[1730470868729,0.2992746,71509.0,71492.0,0.49042564]
[1730470868730,0.12623338,71506.0,71492.0,0.49042564]
[1730470868939,0.12623338,71502.0,71493.0,0.139873]
[1730470869153,0.12623338,71502.0,71491.0,0.13845525]
[1730470869317,0.12623338,71498.0,71491.0,0.34913089]
[1730470869558,0.12623338,71502.0,71492.0,0.139875]
[1730470869915,0.12623338,71493.0,71481.0,0.379792]
[1730470870125,0.12623338,71497.0,71488.0,0.21067564]
[1730470870327,0.12623338,71497.0,71481.0,0.23845525]
[1730470870328,0.12623338,71492.0,71481.0,0.23845525]
[1730470870654,0.01262334,71496.0,71471.0,0.21067564]
[1730470870655,0.12623338,71484.0,71471.0,0.21067564]
[1730470870855,0.12623338,71472.0,71471.0,0.21067564]
[1730470871076,0.12623338,71472.0,71457.0,0.075]
[1730470871077,0.139917,71471.0,71457.0,0.139943]
[1730470871358,0.12623338,71462.0,71456.0,0.001646]
[1730470871724,0.12623338,71458.0,71456.0,0.001646]
[1730470872293,0.162944,71457.0,71456.0,0.001646]
[1730470872520,0.139967,71445.0,71439.0,0.21067564]
[1730470872746,0.64978901,71445.0,71439.0,0.21067564]
[1730470872954,0.64978901,71445.0,71429.0,0.21067564]
[1730470872955,0.139979,71439.0,71438.0,0.21067564]
[1730470873157,0.12623338,71439.0,71429.0,0.17299728]
[1730470873369,0.12623338,71439.0,71421.0,0.21067564]
[1730470873370,0.139999,71429.0,71421.0,0.21067564]
[1730470873591,0.12623338,71430.0,71421.0,0.21067564]
[1730470873820,0.12623338,71430.0,71413.0,0.21067564]
[1730470874025,0.139999,71429.0,71413.0,0.21067564]
[1730470874288,0.240008,71424.0,71414.0,0.21067564]
[1730470874616,0.50469663,71424.0,71414.0,0.21067564]
[1730470874842,0.79070047,71424.0,71409.0,0.02191256]
[1730470875047,0.12623338,71410.0,71406.0,0.21067564]
[1730470875293,0.12623338,71407.0,71406.0,0.21067564]
[1730470875506,0.12623338,71407.0,71401.0,0.02191641]
[1730470875715,0.26628538,71402.0,71401.0,0.02191641]
[1730470875905,0.12623338,71402.0,71390.0,0.21067564]
[1730470876030,0.12623338,71394.0,71390.0,0.21067564]
[1730470876231,0.12623338,71394.0,71389.0,0.02350321]
[1730470876429,0.12623338,71398.0,71389.0,0.02350321]
[1730470876659,0.33690902,71406.0,71390.0,0.13845525]
[1730470876877,0.21067564,71406.0,71390.0,0.14125661]
[1730470877075,0.21067564,71406.0,71390.0,0.13845525]
[1730470877443,0.21067564,71405.0,71391.0,0.10280104]
[1730470877646,0.1,71406.0,71397.0,0.28012]
[1730470877767,0.1,71406.0,71393.0,0.19672376]
[1730470877768,0.1,71406.0,71405.0,0.140046]
[1730470877970,0.1,71406.0,71405.0,0.33676976]
[1730470878205,0.1,71406.0,71405.0,0.43676976]
[1730470878406,0.08545805,71406.0,71405.0,0.43676976]
[1730470878817,0.08545805,71406.0,71405.0,0.57522501]
[1730470879026,0.08545805,71406.0,71405.0,0.59822501]
[1730470879269,0.00735805,71406.0,71405.0,0.59822501]
[1730470879927,0.21067564,71422.0,71421.0,0.240014]
[1730470880101,0.21067564,71422.0,71421.0,0.57519301]
[1730470880279,0.19672376,71459.0,71422.0,0.1]
[1730470880601,0.19672376,71459.0,71429.0,0.19672376]
[1730470880805,0.19672376,71459.0,71434.0,0.19672376]
[1730470881224,0.19672376,71459.0,71430.0,0.1]
[1730470881470,0.19672376,71454.0,71430.0,0.1]
[1730470881639,0.19672376,71454.0,71432.0,0.1]
[1730470881835,0.19672376,71454.0,71434.0,0.1]
[1730470882047,0.19672376,71454.0,71435.0,0.14125463]
[1730470882248,0.19672376,71459.0,71436.0,0.21067564]
[1730470882506,0.21067564,71453.0,71437.0,0.14125448]
[1730470882625,0.21067564,71453.0,71438.0,0.1]
[1730470882828,0.21067564,71453.0,71439.0,0.13845525]
[1730470883305,0.19672376,71450.0,71438.0,0.1]
[1730470883602,0.19672376,71455.0,71443.0,0.13997]
[1730470883719,0.21067564,71453.0,71445.0,0.279934]
[1730470883924,0.19672376,71460.0,71448.0,0.13996]
[1730470884143,0.19672376,71460.0,71446.0,0.139964]
[1730470884348,0.2874239,71460.0,71447.0,0.139963]
[1730470884910,0.09070014,71460.0,71446.0,0.279929]
[1730470885226,0.09070014,71460.0,71447.0,0.279927]
[1730470885435,0.21067564,71466.0,71448.0,0.19672376]
[1730470885561,0.21067564,71466.0,71449.0,0.14125398]
[1730470885767,0.21067564,71466.0,71463.0,0.139931]
[1730470885967,0.21067564,71466.0,71461.0,0.27987]
[1730470886203,0.19672376,71476.0,71463.0,0.139931]
[1730470886402,0.21067564,71479.0,71472.0,0.139913]
[1730470886604,0.21067564,71478.0,71475.0,0.139908]
[1730470886953,0.21067564,71478.0,71464.0,0.13845525]